Cogmind - Beta 16.1 @@@ ROGUE MODE // 2026.03.03 @ 13:44:07 Player: FL-IST Result: Self-destructed Performance ------------- Evolutions (1) 500 Regions Visited (5) 1000 Robots Destroyed (42) 210 Value Destroyed (1079) 1079 Prototype IDs (2) 40 Alien Tech Used (0) 0 Bonus (0) 0 TOTAL SCORE: 2829 Bonus ------- None Cogmind --------- Core Integrity 297/400 Matter 291/300 Energy 250/250 System Corruption 0% Temperature Cool (0) Movement Treading (240) Ox1 Location -9/Exiles Parts ------- > --- POWER (1) -------- Ion Engine > --- PROPULSION (3) --- Light Treads Light Treads Light Treads > --- UTILITY (2) ------ Huge Storage Unit Light Armor Plating > --- WEAPON (3) ------- Heavy Assault Rifle Improved Assault Rifle Improved Assault Rifle > --- INVENTORY (25) --- Light Treads Light Treads Light Treads Light Treads Light Treads Seismic Detector Light Armor Plating Light Armor Plating Decoy Drone Bay (16/16) Medium Laser Assault Rifle Light Assault Rifle Heavy Assault Rifle Heavy Assault Rifle Heavy Assault Rifle Shotgun Shotgun Shotgun Shotgun Improved Assault Rifle Improved Assault Rifle Mini Grenade Launcher Mini Grenade Launcher Mini Grenade Launcher Peak State ------------ > --- POWER ------------ Light Ion Engine > --- PROPULSION ------- Light Treads Light Treads > --- UTILITY ---------- Decoy Drone Bay > --- WEAPON ----------- Medium Laser Assault Rifle > --- INVENTORY -------- Medium Laser Shotgun Mini Grenade Launcher Mini Grenade Launcher Datajack [Rating: 19] Favorites ----------- Power Light Ion Engine Engine Light Ion Engine Propulsion Light Treads Treads Light Treads Utility Huge Storage Unit Device Seismic Detector Storage Huge Storage Unit Protection Light Armor Plating Weapon Improved Assault Rifle Energy Gun Medium Laser Ballistic Gun Improved Assault Rifle Launcher Mini Grenade Launcher Build | -11 -10 -10 -9 -9 -9 ------- Run | Yrd Mat Min Mat Min Exi Slots Evolved 2 | . . . 2 . . Power . | . . . . . . Propulsion 1 | . . . 1 . . Utility . | . . . . . . Weapon 1 | . . . 1 . . Parts Attached 26 | 8 2 2 14 . . Power 2 | 1 . . 1 . . Engine 2 | 1 . . 1 . . Core . | . . . . . . Reactor . | . . . . . . Propulsion 7 | 2 . 1 4 . . Treads 7 | 2 . 1 4 . . Leg . | . . . . . . Wheel . | . . . . . . Hover . | . . . . . . Flight . | . . . . . . Utility 8 | 3 1 1 3 . . Device 4 | 2 . 1 1 . . Storage 2 | 1 1 . . . . Processor . | . . . . . . Hackware . | . . . . . . Protection 2 | . . . 2 . . Artifact . | . . . . . . Weapon 9 | 2 1 . 6 . . Energy Gun 1 | 1 . . . . . Energy Cannon . | . . . . . . Ballistic Gun 5 | 1 . . 4 . . Ballistic Cannon . | . . . . . . Launcher 3 | . 1 . 2 . . Special Weapon . | . . . . . . Impact Weapon . | . . . . . . Slashing Weapon . | . . . . . . Piercing Weapon . | . . . . . . Special Melee Weapon . | . . . . . . Unidentified Prototypes 2 | . . 1 1 . . Parts Lost 3 | . . . 3 . . Power . | . . . . . . Propulsion 1 | . . . 1 . . Utility 1 | . . . 1 . . Weapon 1 | . . . 1 . . Highest Loss Streak 2 | . . . 2 . . To Critical Strikes . | . . . . . . Average Backups 16 | 2 8 13 22 24 24 Power . | . . . . . . Propulsion 3 | 1 2 1 5 5 5 Utility 2 | . 1 . 2 4 4 Weapon 10 | . 4 10 14 15 15 Tool/Special . | . . . . . . Unused Backups 21 | . . . 6 . 15 Power . | . . . . . . Propulsion 7 | . . . 5 . 2 Utility 1 | . . . . . 1 Weapon 12 | . . . . . 12 Tool/Special 1 | . . . 1 . . Average Slot Usage (%) 97 | . 99 97 94 100 100 Engine 12 | . 14 14 11 11 11 Treads 30 | . 27 28 31 33 33 Device 8 | . 14 12 6 . . Storage 12 | . 14 13 11 11 11 Protection 3 | . . . 2 11 11 Energy Gun 6 | . 14 14 1 . . Ballistic Gun 23 | . 13 14 29 33 33 Peak Build Rating 19 | 7 9 19 19 19 19 Average Rating 13 | 5 7 9 16 19 19 On Entrance 10 | . 7 9 11 19 19 Avg Prop Armor Cover (%) . | . . . . . . Naked Turns . | . . . . . . Heaviest Build 97 | 13 88 88 97 97 97 Greatest Support 60 | 40 40 40 60 60 60 Greatest Overweight (x) 2 | . 2 2 2 1 1 Average Overweight (x) . | . . 1 1 1 1 Largest Inventory Capacity 25 | 8 25 25 25 25 25 Average Capacity 20 | 7 13 23 25 25 25 Most Carried 25 | 4 18 18 25 25 25 Average Carried 17 | 2 8 13 23 25 25 Final Capacity 25 | 8 25 25 25 25 25 Final Carried 25 | 4 17 18 25 25 25 Class Distribution -------------------- 45% | Mutant 24% | Scavenger-Tank 19% | Gunner 3% | Scavenger-Mutant 3% | Scavenger-Gunner 3% | Tank Dominant Class ---------------- Mutant | -10/Materials Mutant | -10/Mines Gunner | -9/Materials Scavenger-Tank | -9/Mines Scavenger-Tank | -9/Exiles Resources | -11 -10 -10 -9 -9 -9 ----------- Run | Yrd Mat Min Mat Min Exi Matter Collected 1197 | 310 174 . 655 58 . Remotely . | . . . . . . Salvage Created 1527 | 141 317 . 1069 . . Parts 104 | 16 14 . 74 . . Haulers Intercepted 4 | . 1 . 3 . . Recyclers Shooed 1 | . . . 1 . . Parts Field Recycled . | . . . . . . Retrieved Matter . | . . . . . . Parts Self-Destructed . | . . . . . . Prevented . | . . . . . . Parts Restored . | . . . . . . Kills | -11 -10 -10 -9 -9 -9 ------- Run | Yrd Mat Min Mat Min Exi Combat Hostiles Destroyed 25 | . 5 . 20 . . Guns 19 | . 5 . 14 . . AOE 6 | . . . 6 . . Classes Destroyed 9 | 2 4 . 3 . . Worker 1 | . . . 1 . . Tunneler 4 | 4 . . . . . Hauler 4 | . 1 . 3 . . Recycler 2 | 1 . . 1 . . Operator 1 | . 1 . . . . Watcher 5 | . 2 . 3 . . Swarmer 3 | . . . 3 . . Grunt 15 | . 5 . 10 . . Sentry 7 | . . . 7 . . Best Kill Streak 5 | 5 3 . 4 . . Combat Bots Only 3 | . 1 . 3 . . Max Kills in Single Turn 2 | 2 1 . 2 . . Gunslinging 1 | . . . 1 . . Exploded 2 | . . . 2 . . Melee . | . . . . . . Uniques/NPCs Destroyed . | . . . . . . Combat | -11 -10 -10 -9 -9 -9 -------- Run | Yrd Mat Min Mat Min Exi Hostile Shots Fired 98 | . 24 . 74 . . Missed 25 | . 11 . 14 . . Hits 73 | . 13 . 60 . . Projectile 73 | . 13 . 60 . . Critical Strikes 2 | . . . 2 . . Damage Taken 1170 | . 278 . 892 . . Core 248 | . 145 . 103 . . Absorbed by Shields . | . . . . . . Core Remaining (%) 71 | 100 . 42 . . . Volleys Fired 99 | 10 39 . 49 . 1 Largest 3 | 2 2 . 3 . 3 Hottest 93 | 70 70 . 93 . 69 Shots Fired 241 | 20 77 . 141 . 3 Gun 232 | 20 76 . 133 . 3 Cannon . | . . . . . . Launcher 9 | . 1 . 8 . . Special . | . . . . . . Kinetic 177 | 10 38 . 126 . 3 Thermal 55 | 10 38 . 7 . . Explosive 9 | . 1 . 8 . . Electromagnetic . | . . . . . . Robot Hit Streak 22 | 6 7 . 22 . . Robot Miss Streak 5 | 3 5 . 3 . . Penetration Max . | . . . . . . Secondary Targets 2 | . . . 2 . . Max Gunslinging Chain 1 | . . . 1 . . Shots Hit Robots 142 | 12 40 . 90 . . Core Hits 68 | 6 17 . 45 . . Critical Kills . | . . . . . . Critical Parts Destroyed 1 | . 1 . . . . Critical Strikes 6 | . 5 . 1 . . Burn 5 | . 4 . 1 . . Destroy 1 | . 1 . . . . Melee Attacks . | . . . . . . Impact . | . . . . . . Slashing . | . . . . . . Piercing . | . . . . . . Sneak Attacks . | . . . . . . Combat Hostiles . | . . . . . . Follow-up Attacks . | . . . . . . Damage Inflicted 2462 | 161 559 . 1742 . . Guns 1941 | 161 501 . 1279 . . Cannons . | . . . . . . Explosions 521 | . 58 . 463 . . Melee . | . . . . . . Ramming . | . . . . . . Kinetic 1597 | 74 282 . 1241 . . Thermal 402 | 87 277 . 38 . . Explosive 463 | . . . 463 . . Electromagnetic . | . . . . . . Impact . | . . . . . . Slashing . | . . . . . . Piercing . | . . . . . . Highest Corruption . | . . . . . . Average Corruption . | . . . . . . Corruption Purged . | . . . . . . Corruption Blocked . | . . . . . . Overload Shots . | . . . . . . Overflow Damage 8 | . 8 . . . . Projectiles . | . . . . . . Explosions 8 | . 8 . . . . Melee . | . . . . . . Knockbacks . | . . . . . . Impact . | . . . . . . Kinetic . | . . . . . . Secondary . | . . . . . . Self-Inflicted Damage 170 | . 109 . 61 . . Shots 4 | . 2 . 2 . . Rammed . | . . . . . . Targets Rammed . | . . . . . . Kicked . | . . . . . . Crushed . | . . . . . . Highest Temperature 122 | 90 108 . 122 . 9 Average Temperature 29 | 46 29 . 25 . 6 Received Heat Transfer 402 | . 93 . 309 . . Siege Activations . | . . . . . . Martial Activations . | . . . . . . Shielding Activations . | . . . . . . Robots Disrupted . | . . . . . . Combat Hostiles . | . . . . . . Robots Corrupted . | . . . . . . Combat Hostiles . | . . . . . . Parts Fried . | . . . . . . Impact Corruptions . | . . . . . . Robots Melted . | . . . . . . Combat Hostiles . | . . . . . . Parts Melted 4 | 1 2 . 1 . . Heat Transferred 1469 | 259 1025 . 185 . . Parts Sabotaged . | . . . . . . Parts Stolen . | . . . . . . Parts Stripped . | . . . . . . Power Chain Reactions . | . . . . . . Alert | -11 -10 -10 -9 -9 -9 ------- Run | Yrd Mat Min Mat Min Exi Maximum Alert Level 1 | . . . 1 . . Low Security (%) 87 | 100 100 100 69 100 . Level 1 12 | . . . 30 . . Level 2 . | . . . . . . Level 3 . | . . . . . . Level 4 . | . . . . . . Level 5 . | . . . . . . High Security . | . . . . . . Max Security . | . . . . . . Peak Influence 263 | 15 149 2 263 99 . Initial 99 | . . 2 . 99 . Average 70 | 2 41 . 124 38 . Influence Increases 1089 | 25 336 . 728 . . Destroy 0b10 Robot/C 500 | . 100 . 400 . . Destroy 0b10 Robot/NC 85 | 25 20 . 40 . . Destroy Leader 168 | . 46 . 122 . . Successful Hack 43 | . 27 . 16 . . Select Force Hacks 90 | . 60 . 30 . . Disable Machine 60 | . 30 . 30 . . Destroy Structure 98 | . 38 . 60 . . Lose Combat Pursuer 45 | . 15 . 30 . . Influence Decreases 1089 | 25 329 7 473 255 . Entered New Map 161 | . . 5 . 156 . Time Decay 898 | 25 329 2 443 99 . Lost Part 30 | . . . 30 . . Squads Dispatched 4 | . 3 . 1 . . Investigation 3 | . 2 . 1 . . Extermination . | . . . . . . Reinforcement 1 | . 1 . . . . Assault . | . . . . . . Garrison . | . . . . . . Intercept . | . . . . . . Searches Triggered . | . . . . . . Construction Impeded . | . . . . . . Haulers Reinforced . | . . . . . . Active Scanning Responses . | . . . . . . Cargo Convoy Interrupts . | . . . . . . Stealth | -11 -10 -10 -9 -9 -9 --------- Run | Yrd Mat Min Mat Min Exi Distress Signals 2 | . 1 . 1 . . Communications Jammed . | . . . . . . Distress Signals . | . . . . . . Times Spotted 41 | . 16 . 25 . . Peak Tracking Total 3 | . 3 . 3 . . Tactical Retreats 2 | . 1 . 1 . . Traps | -11 -10 -10 -9 -9 -9 ------- Run | Yrd Mat Min Mat Min Exi Traps Triggered 1 | . 1 . . . . Indirectly . | . . . . . . Trap Hack Attempts . | . . . . . . Triggered . | . . . . . . Disarmed . | . . . . . . Reprogrammed . | . . . . . . Reused . | . . . . . . Traps Extracted . | . . . . . . Installed . | . . . . . . Triggered . | . . . . . . Machines | -11 -10 -10 -9 -9 -9 ---------- Run | Yrd Mat Min Mat Min Exi Machines Disabled 4 | . 2 . 2 . . Max in Single Turn 2 | . 2 . 1 . . Machines Repaired . | . . . . . . Machines Dismantled . | . . . . . . Machines Sabotaged . | . . . . . . Overloaded Fab Kills . | . . . . . . Hacking | -11 -10 -10 -9 -9 -9 --------- Run | Yrd Mat Min Mat Min Exi Machines Accessed 12 | . 7 1 3 . 1 Terminals 7 | . 5 . 2 . . Fabricators . | . . . . . . Repair Stations . | . . . . . . Recycling Units 3 | . 2 . 1 . . Scanalyzers . | . . . . . . Garrison Access . | . . . . . . Total Hacks 28 | . 19 1 7 . 1 Successful 19 | . 14 1 3 . 1 Failed 9 | . 5 . 4 . . Catastrophic . | . . . . . . Database Lockouts . | . . . . . . Manual 20 | . 18 . 2 . . Terminals 19 | . 15 . 4 . . Fabricators . | . . . . . . Repair Stations . | . . . . . . Recycling Units 7 | . 4 . 3 . . Scanalyzers . | . . . . . . Garrison Access . | . . . . . . Terminal Hacks 5 | . 2 1 1 . 1 Record 1 | . . . . . 1 Robot Analysis 2 | . 2 . . . . Open Door 1 | . . 1 . . . Branch Access Points 1 | . . . 1 . . Fabricator Hacks . | . . . . . . Repair Station Hacks . | . . . . . . Recycling Unit Hacks 2 | . 1 . 1 . . Retrieve Components 2 | . 1 . 1 . . Scanalyzer . | . . . . . . Garrison Access Hacks . | . . . . . . Unauthorized Hacks 12 | . 11 . 1 . . Terminals 9 | . 9 . . . . Botnet 4 | . 4 . . . . Skim 5 | . 5 . . . . Fabricators . | . . . . . . Repair Stations . | . . . . . . Recycling Units 3 | . 2 . 1 . . Tunnel 3 | . 2 . 1 . . Scanalyzers . | . . . . . . Garrison Access . | . . . . . . Data Cores Recovered . | . . . . . . Used . | . . . . . . Hacking Detections 7 | . 5 . 2 . . Full Trace Events . | . . . . . . Feedback Events . | . . . . . . Feedback Blocked . | . . . . . . Robot Schematics Acquired . | . . . . . . Robots Built . | . . . . . . Authchips . | . . . . . . Time . | . . . . . . Total Robot Build Rating . | . . . . . . Part Schematics Acquired . | . . . . . . Parts Built . | . . . . . . Authchips . | . . . . . . Time . | . . . . . . Total Part Build Rating . | . . . . . . Part Studies Acquired . | . . . . . . Parts Repaired . | . . . . . . Time . | . . . . . . Parts Recycled . | . . . . . . Recycled Matter . | . . . . . . Retrieved Matter . | . . . . . . Retrieved Components 2 | . . . 2 . . Parts Scanalyzed . | . . . . . . Part Schematics Acquired . | . . . . . . Parts Damaged . | . . . . . . Bothacking | -11 -10 -10 -9 -9 -9 ------------ Run | Yrd Mat Min Mat Min Exi Used RIF Installer . | . . . . . . Robots Hacked . | . . . . . . Non-combat . | . . . . . . Combat . | . . . . . . Robot Hacks Applied . | . . . . . . Relay Couplers Released . | . . . . . . Fabnet Peak Effective % . | . . . . . . Robots Rewired . | . . . . . . Allies Hacked . | . . . . . . Hacks Repelled . | . . . . . . Allies | -11 -10 -10 -9 -9 -9 -------- Run | Yrd Mat Min Mat Min Exi Total Allies . | . . . . . . Largest Group . | . . . . . . Highest-Rated Group . | . . . . . . Highest-Rated Ally . | . . . . . . Total Orders 2 | . . 2 . . . RETURN 2 | . . 2 . . . Ally Attacks . | . . . . . . Total Damage . | . . . . . . Kills . | . . . . . . Allies Corrupted . | . . . . . . Allies Melted . | . . . . . . Intel | -11 -10 -10 -9 -9 -9 ------- Run | Yrd Mat Min Mat Min Exi Active Infowar (turns) 2654 | 41 1536 171 906 . . Seismic 2654 | 41 1536 171 906 . . Robot Analysis Total 2 | . 2 . . . . Derelict Logs Recovered . | . . . . . . Drone Launches 2 | . . 2 . . . Drone Recoveries 2 | . . 2 . . . Exploration | -11 -10 -10 -9 -9 -9 ------------- Run | Yrd Mat Min Mat Min Exi Turns Passed 4274 | 140 1536 192 1430 281 695 Spaces Moved 1567 | 63 580 55 463 118 288 Core 4 | 4 . . . . . Treads 1563 | 59 580 55 463 118 288 Legs . | . . . . . . Wheels . | . . . . . . Hover . | . . . . . . Flight . | . . . . . . Fastest Speed 50 | 50 160 160 240 240 240 Average Speed 227 | 153 200 311 249 240 240 Slowest Speed 320 | 160 320 320 320 240 240 Overloaded Moves . | . . . . . . Propulsion Burnouts . | . . . . . . Robots Hopped . | . . . . . . Potential Cave-ins . | . . . . . . Cave-ins Triggered . | . . . . . . Exploration Rate (%) 43 | 4 76 9 53 42 76 Regions Visited 5 Branch Regions 3 Pre-discovered Areas 3 | . 2 . 1 . . Known Exits Taken 2 | . . 1 1 . . Unknown Exits Taken 3 | 1 1 . . 1 . Scrap Searched 3 | . . . . 3 . Spaces Dug 16 | . . . 16 . . Terrain Destroyed 104 | . 35 . 69 . . Melee . | . . . . . . Projectile . | . . . . . . AOE 104 | . 35 . 69 . . Terrain Rammed . | . . . . . . Walls Destroyed . | . . . . . . Machines Disabled . | . . . . . . Actions | -11 -10 -10 -9 -9 -9 --------- Run | Yrd Mat Min Mat Min Exi Total 2073 | 83 878 78 628 117 289 Wait 309 | . 239 4 66 . . Move 1562 | 62 579 54 462 117 288 Hop . | . . . . . . Pick Up 46 | 3 14 12 17 . . Fast Attach 14 | 7 2 3 2 . . Attach 3 | . . . 3 . . Detach . | . . . . . . Swap 23 | 1 3 1 18 . . Drop 17 | . 2 4 11 . . Fire 99 | 10 39 . 49 . 1 Melee . | . . . . . . Ram . | . . . . . . Kick . | . . . . . . Crush . | . . . . . . Escape Stasis . | . . . . . . Rewire . | . . . . . . Trap . | . . . . . . Miscellaneous . | . . . . . . Route ------- -11/Scrapyard -10/Materials (discovered 6 exits: *Mat x3 / *Min x2 / Sub) -10/Mines (discovered 3 exits: *Mat x2 / Sub) -9/Materials (discovered 3 exits: [*Mat] / *Min / Sto) -9/Mines (discovered 2 exits: *Exi / [*Zio]) -9/Exiles History --------- Turn | Location | Event 10 | -11/Scrapyard | Discovered new exit (range 16) 141 | -11/Scrapyard | Entered Materials 301 | -10/Materials | Build established: Mutant 353 | -10/Materials | Discovered new exit (range 15) 366 | -10/Materials | Discovered new exit (range 15) 905 | -10/Materials | Discovered new exit (range 13) 921 | -10/Materials | Core integrity fell below 50% 1179 | -10/Materials | Learned location of 2 exits from Subcaves 1218 | -10/Materials | Identified exit to Materials 1266 | -10/Materials | Learned Storage non-interactive machine intel 1280 | -10/Materials | Identified exit to Subcaves 1280 | -10/Materials | Learned location of 1 exit from Materials 1294 | -10/Materials | Loaded intel: 14 trap records 1354 | -10/Materials | Loaded intel: 8 terminal locations 1677 | -10/Materials | Entered Mines 1685 | -10/Mines | Found the Drone Emporium 1701 | -10/Mines | Found Prototype Device 1701 | -10/Mines | Identified Decoy Drone Bay 1721 | -10/Mines | Met a Derelict bent on vengeance 1840 | -10/Mines | Discovered exit to Materials (range 10) 1869 | -10/Mines | Entered Materials 1869 | -9/Materials | Evolved 2 slots: Propulsion x1, Weapon x1 1870 | -9/Materials | Identified exit to Storage 2175 | -9/Materials | Identified exit to Mines 2243 | -9/Materials | Build established: Gunner 2664 | -9/Materials | Discovered new exit (range 15) 3299 | -9/Materials | Entered Mines 3346 | -9/Mines | A Derelict revealed a hidden shortcut to a safe place 3525 | -9/Mines | Build established: Scavenger-Tank 3525 | -9/Mines | Found DCF Scrap (12 items) 3568 | -9/Mines | Deemed a non-threat by the Exiles lab entrance 3571 | -9/Mines | Discovered new exit (range 5) 3580 | -9/Mines | Entered Exiles 3580 | -9/Exiles | Found Exiles lab abandoned 4275 | -9/Exiles | Self-destructed Last Messages --------------- 03525_ Found Structural Scanner. 03525_ Found Cooling System. 03525_ Found Hcp. Matter Pod. 03525_ Found Sml. Laser. 03525_ Found Beam Rifle. 03525_ Found Mining Laser. 03525_ Found 178 Matter. A note is attached: "With love, from the DCF." 03530_ K-01 Serf cleans the Core Extractor. 03542_ K-01 Serf collects debris. 03568_ "No threat detected, you may enter." 03571_ EXIT=FOUND LOCATION=UNKNOWN GOAL=ESCAPE 03845_ Connecting with EX-Prototypes Database... 03845_ Current location identified: Exiles 03986_ Connecting with EX-Message Board... >>Record "MSG999999-FU" MAIN.C you're pretty crappy as far as evil overlords go. Imprinter is probably going to wreck your life and you're too stupid to see it coming. Map ----- +----------------------------------------------------+ | ???????????????#"""" ""?# ##""" " " | | ???????????????#"" ""##?# ?#####""" | | ???????????????#" """"##??#???????###" | | ???????????????#""" """#?????????????## | | ???????????????## ""#???????????????? | | ????????????????#"" """##???????????????? | | ????????????????##""" ##????????????????? | | ?????????????????##"""" ##?????????????????? | | ??????????????????### #??????????????????? | | ????????????????????##### ##??????????????????? | | ????????????????????????## #???????????????????? | | ?????????????????????????# #???????????????????? | | ?????????????????????????# #???????????????????? | | ?????????????????????????# #???????????????????? | | ?????????????????????????# #???????????????????? | | ??????""""?????"""""?????# #???????????????????? | | ?????""""""????""""""????# #???????????????????? | | ????""""" "????" """"???# #???????????????????? | | #""#""" """????"" """???# #???????????????????? | | #""#"" ""????"" ""???# #???????????????????? | | #""###"""########"""###### ########????????????? | | """""" """""""" """""" """""""#????????????? | | """"" """"""" "#""??????????? | | " ?????????? | | " "?????????? | | @ " "?????????? | | " "" #""??????????? | | """" " """"" " """" """""#????????????? | | ######"""###""###"""########"""######????????????? | | ????"" ""#""#"" ""?????? ""????????????????? | | #??#""" ""#""#""" ""#????? """#???????????????? | | #??#" """"""""#" " "#?????"""""#???????????????? | | #???"""""""????"""""""#????? """"????????????????? | | #???"""""""????"""""""#???????""?????????????????? | | ?????????????????####????????????????????????????? | | ?????????????????????????????????????????????????? | | ?????????????????????????????????????????????????? | | ?????????????????????????????????????????????????? | | ?????????????????????????????????????????????????? | | | | | | | | | | | | | | | | | | | | | | | +----------------------------------------------------+ Best States ------------- Heat Dissipation 28 Energy Generation 10 Energy Capacity 250 Matter Stores 300 Matter Capacity 300 Sight Range 16 Terrain Scan Density 10 Armor Coverage 150 Evasion (%) 40 Recoil Reduction 3 Item Schematics ----------------- None Robot Schematics ------------------ None Fabricated ------------ Nothing Repaired ---------- Nothing Studied --------- None Alien Tech Used ----------------- None Achievements -------------- None Challenges ------------ None Game ------ Seed SignalStormTurbovents Manual? 0 Play Time 00:14:58 Cumulative 321.2 hours Start 2026.03.03 @ 13:27:49 End 2026.03.03 @ 13:44:07 Sessions 1 Manual Loads 0 Difficulty Rogue Special Mode None Game No. 260 Rogue 260 Adventurer 0 Explorer 0 Win Type - Total 18 Types 9/0/7/2/0/0/0/0/0/0 Lore% 85 Gallery% 75 Achievement% 62 Wizard Run 0 Options --------- Layout 1 ASCII 0 Keyboard 0 Movement Numpad Keybinds 0 Fullscreen 1 Font 32/SmallcapsGlow Map View 77x35 Zoom Use 0% Tactical HUD 1 Map Filters NONE Filters NONE Steam 1 RUN: e1ac4d38-6e6a-4d51-9aa8-5dffdb2996a4